bitfinex/quotes_BTCUSD_20250406
["timestamp","ask_amount","ask_price","bid_price","bid_amount"]
[1743976347937,0.0140777,79261.0,79260.0,0.44243353]
[1743976348249,0.0140777,79261.0,79260.0,0.44143353]
[1743976348250,0.0001675,79261.0,79260.0,0.44143353]
[1743976348442,0.0001675,79261.0,79260.0,0.44243353]
[1743976348931,0.0001675,79261.0,79260.0,0.44143353]
[1743976349112,0.0011675,79261.0,79260.0,0.46763784]
[1743976349441,0.0011675,79261.0,79260.0,0.46663784]
[1743976349639,0.0001675,79261.0,79260.0,0.46763784]
[1743976350568,0.0001675,79261.0,79260.0,0.46863784]
[1743976351398,0.0001675,79261.0,79260.0,0.46763784]
[1743976351745,0.0001675,79261.0,79260.0,0.47063784]
[1743976351887,0.0001675,79261.0,79260.0,0.46663784]
[1743976352095,0.0001675,79261.0,79260.0,0.46863784]
[1743976352299,0.0001675,79261.0,79260.0,0.47263784]
[1743976352503,0.0001675,79261.0,79260.0,0.80863784]
[1743976352715,0.0001675,79261.0,79260.0,0.80663784]
[1743976353046,0.0001675,79261.0,79260.0,0.80863784]
[1743976353541,0.0001675,79261.0,79260.0,0.80663784]
[1743976353773,0.0001675,79261.0,79260.0,0.80863784]
[1743976353978,0.0001675,79261.0,79260.0,0.81263784]
[1743976354153,0.0001675,79261.0,79260.0,0.80863784]
[1743976354659,0.0001675,79261.0,79260.0,0.81263784]
[1743976355260,0.0001675,79261.0,79260.0,0.81063784]
[1743976355466,0.0001675,79261.0,79260.0,0.81263784]
[1743976356705,0.0001675,79261.0,79260.0,0.78743353]
[1743976357032,0.0001675,79261.0,79260.0,0.95695353]
[1743976357929,0.0001675,79261.0,79260.0,0.95295353]
[1743976358930,0.0001675,79261.0,79260.0,0.16194268]
[1743976359127,0.0001675,79261.0,79260.0,0.16394268]
[1743976359433,0.0001675,79261.0,79260.0,0.17848353]
[1743976359635,0.0001675,79261.0,79260.0,0.17648353]
[1743976359636,0.01412096,79261.0,79260.0,0.17648353]
[1743976359833,0.01412096,79261.0,79260.0,0.17848353]
[1743976360823,0.02673696,79261.0,79260.0,0.17848353]
[1743976361030,0.02673696,79261.0,79260.0,0.18248353]
[1743976361226,0.07253696,79261.0,79260.0,0.04103971]
[1743976361468,0.12349126,79261.0,79260.0,0.002]
[1743976361726,0.12349126,79261.0,79260.0,0.006]
[1743976361887,0.12349126,79261.0,79260.0,0.004]
[1743976362290,0.12349126,79261.0,79260.0,0.002]
[1743976363122,0.12549126,79261.0,79260.0,0.002]
[1743976363968,0.12549126,79261.0,79245.0,0.01454085]
[1743976363969,0.012618,79248.0,79245.0,0.01454085]
[1743976364170,0.012618,79248.0,79247.0,0.01454085]
[1743976364346,0.012618,79248.0,79247.0,0.13744382]
[1743976364549,0.02657146,79248.0,79247.0,0.13744382]
[1743976364868,0.07237146,79248.0,79247.0,0.13744382]
[1743976365493,0.07237146,79248.0,79247.0,0.13844382]
[1743976366789,0.02657146,79248.0,79247.0,0.13844382]
[1743976367534,0.02657146,79248.0,79247.0,0.13744382]
[1743976368332,0.060418,79246.0,79245.0,0.00013608]
[1743976368502,0.10937305,79246.0,79245.0,0.00013608]
[1743976368943,0.12332651,79246.0,79245.0,0.00013608]
[1743976369508,0.13276404,79246.0,79245.0,0.00013608]
[1743976370219,0.47276404,79246.0,79245.0,0.00013608]
[1743976370433,0.46960899,79246.0,79245.0,0.00013608]
[1743976370643,0.012621,79228.0,79227.0,0.0003346]
[1743976370851,0.36181289,79228.0,79227.0,0.0003346]
[1743976370998,0.37239742,79228.0,79227.0,0.0003346]
[1743976372132,0.69869,79218.0,79217.0,0.11275723]
[1743976372455,0.69869,79218.0,79217.0,0.1132112]
[1743976372660,0.83531612,79218.0,79217.0,0.00045397]
[1743976372882,0.698704,79214.0,79213.0,4e-07]
[1743976372999,0.32154,79203.0,79201.0,0.0003344]
[1743976373204,0.66154,79203.0,79202.0,0.00047073]
[1743976373400,0.67528042,79203.0,79202.0,0.00047073]
[1743976374258,0.67528042,79203.0,79202.0,0.00247073]
[1743976374466,0.67528042,79203.0,79202.0,0.00047073]
[1743976374841,0.67628042,79203.0,79202.0,0.00047073]
[1743976375041,0.68888317,79203.0,79202.0,0.00047073]
[1743976375251,0.67928042,79203.0,79202.0,0.00047073]
[1743976375485,0.33068042,79203.0,79202.0,0.00047073]
[1743976375776,0.27025542,79203.0,79202.0,0.00047073]
[1743976375977,0.28288042,79203.0,79202.0,0.00047073]
[1743976376825,0.01774042,79203.0,79202.0,0.01501158]
[1743976377027,0.01774042,79203.0,79202.0,0.15053955]
[1743976377861,0.001,79203.0,79202.0,0.15053955]
[1743976378111,0.0128167,79226.0,79216.0,0.012623]
[1743976378308,0.012622,79222.0,79217.0,0.13744382]
[1743976378506,0.012622,79224.0,79217.0,0.15006682]
[1743976378735,0.265071,79224.0,79219.0,0.01454085]
[1743976378909,0.265062,79227.0,79221.0,0.01454085]
[1743976378910,0.01374042,79223.0,79221.0,0.01454085]
[1743976379126,0.01374042,79223.0,79222.0,0.13744382]
[1743976379326,0.012622,79225.0,79223.0,0.01454085]
[1743976379630,0.012622,79225.0,79218.0,0.012623]
[1743976379631,0.012622,79225.0,79224.0,0.13744382]
[1743976380405,0.252404,79238.0,79227.0,0.012621]
[1743976380614,0.252419,79234.0,79228.0,0.13744382]
[1743976380991,0.252404,79238.0,79231.0,0.01454085]
[1743976380992,0.252412,79236.0,79231.0,0.01454085]
[1743976381216,0.252416,79235.0,79233.0,0.01454085]
[1743976381422,0.265036,79235.0,79234.0,0.13744382]
[1743976381615,0.2654896,79235.0,79234.0,0.13744382]
[1743976382354,0.0004536,79235.0,79234.0,0.13744382]
[1743976382777,0.0130736,79235.0,79234.0,0.13744382]
[1743976382979,0.0140736,79235.0,79234.0,0.13744382]
[1743976383330,0.26507,79224.0,79223.0,0.16924]
[1743976383531,0.26507,79224.0,79223.0,0.12290297]
[1743976383973,0.26507,79224.0,79223.0,0.13744382]
[1743976384473,0.26511,79212.0,79211.0,1.09104]
[1743976384620,0.012622,79223.0,79211.0,1.21394297]
[1743976384828,0.012622,79225.0,79219.0,0.012623]
[1743976385033,0.26507,79225.0,79221.0,0.01454085]
[1743976385257,0.26507,79225.0,79215.0,0.012623]
[1743976385258,0.265046,79232.0,79225.0,0.26698585]
[1743976385462,0.2654866,79235.0,79230.0,0.01454085]
[1743976385663,0.2654866,79235.0,79231.0,0.12290297]
[1743976385876,0.01262,79234.0,79231.0,0.12290297]
[1743976386069,0.0130736,79235.0,79231.0,0.37532697]
[1743976386365,0.252416,79234.0,79231.0,0.12290297]
[1743976386563,0.0004536,79235.0,79232.0,0.01454085]
[1743976386768,0.0004536,79235.0,79234.0,0.01454085]
[1743976386976,0.0004536,79235.0,79234.0,0.13744382]
[1743976387394,0.0130736,79235.0,79234.0,0.13744382]
[1743976387600,0.0004536,79235.0,79234.0,0.13744382]
[1743976387806,0.2538666,79235.0,79234.0,0.13744382]
[1743976388061,0.2664866,79235.0,79234.0,0.13744382]
[1743976388340,0.2654866,79235.0,79234.0,0.13744382]
[1743976388641,0.2558666,79235.0,79234.0,0.13744382]
[1743976389057,0.2684866,79235.0,79234.0,0.13744382]
[1743976389248,0.2654866,79235.0,79234.0,0.13744382]
[1743976389505,0.2654866,79235.0,79224.0,0.16916]
[1743976389506,0.265067,79225.0,79224.0,0.16916]
[1743976389673,0.265067,79225.0,79218.0,0.16916]
[1743976389674,0.012622,79221.0,79218.0,0.16916]
[1743976389907,0.265087,79220.0,79219.0,0.12290297]
[1743976390352,0.27864049,79220.0,79219.0,0.12290297]
[1743976390489,0.27864049,79220.0,79219.0,0.13744382]
[1743976391314,0.27864049,79220.0,79219.0,0.13944382]
[1743976391898,0.27864049,79220.0,79219.0,0.14044382]
[1743976392465,0.01355349,79220.0,79219.0,0.15306682]
[1743976392657,0.252432,79230.0,79224.0,0.252448]
[1743976392797,0.252435,79229.0,79225.0,0.13744382]
[1743976393006,0.26599149,79228.0,79225.0,0.13744382]
[1743976393206,0.252441,79227.0,79225.0,0.13744382]
[1743976393829,0.01355349,79226.0,79225.0,0.13744382]
[1743976394038,0.01355349,79226.0,79225.0,0.13844382]
[1743976394240,0.01355349,79226.0,79225.0,0.13744382]
[1743976394645,0.01355349,79226.0,79225.0,0.13844382]
[1743976394797,0.01355349,79226.0,79225.0,0.13744382]
[1743976395419,0.01455349,79226.0,79225.0,0.13744382]
[1743976395617,0.02717549,79226.0,79225.0,0.13744382]
[1743976395935,0.02617549,79226.0,79225.0,0.13744382]
[1743976396143,0.02717549,79226.0,79225.0,0.13844382]
[1743976396341,0.02717549,79226.0,79225.0,0.13744382]
[1743976396541,0.01455349,79226.0,79225.0,0.13744382]
[1743976396785,0.02717549,79226.0,79225.0,0.13744382]
[1743976396998,0.01455349,79226.0,79225.0,0.13744382]
[1743976397347,0.01355349,79226.0,79225.0,0.13844382]
[1743976397553,0.01355349,79226.0,79225.0,0.13744382]
[1743976397961,0.01355349,79226.0,79225.0,0.13844382]
[1743976398386,0.02717549,79226.0,79225.0,0.13844382]
[1743976403642,0.02617549,79226.0,79225.0,0.13744382]
[1743976403817,0.02717549,79226.0,79225.0,0.13744382]
[1743976404047,0.012623,79216.0,79215.0,0.01454085]
[1743976404217,0.012623,79216.0,79215.0,0.13744382]
[1743976404365,0.26511,79212.0,79211.0,1.09104]
[1743976404567,0.26511,79212.0,79211.0,1.21394297]
[1743976404770,0.27858075,79212.0,79211.0,1.21394297]
[1743976405131,0.27858075,79212.0,79211.0,1.22848382]
[1743976405961,0.27858075,79212.0,79211.0,1.09104]
[1743976406317,0.27858075,79212.0,79211.0,1.09504]
[1743976406516,0.27858075,79212.0,79211.0,1.09104]
[1743976406916,0.27858075,79212.0,79211.0,1.09304]
[1743976407516,0.27858075,79212.0,79211.0,1.09104]
[1743976407719,0.28358075,79212.0,79211.0,1.09104]
[1743976407919,0.26514,79203.0,79201.0,0.0003344]
[1743976408122,0.26514,79203.0,79202.0,0.13777842]
[1743976408539,0.27861075,79203.0,79202.0,0.13777842]
[1743976409180,0.27861075,79203.0,79202.0,0.13791455]
[1743976410004,0.28061075,79203.0,79202.0,0.13791455]
[1743976413568,0.28061075,79203.0,79202.0,0.00047073]
[1743976415813,0.27861075,79203.0,79202.0,0.00047073]
[1743976416218,0.28161075,79203.0,79202.0,0.00047073]
[1743976416375,0.32871075,79203.0,79202.0,0.00047073]
[1743976416576,0.32571075,79203.0,79202.0,0.00047073]
[1743976416961,0.32871075,79203.0,79202.0,0.00047073]
[1743976417203,0.66871075,79203.0,79202.0,0.00047073]
[1743976417421,0.71801075,79203.0,79202.0,0.00047073]
[1743976417642,0.71801075,79203.0,79202.0,7.3e-07]
[1743976418844,0.71801075,79203.0,79189.0,0.0003346]
[1743976418845,0.265154,79199.0,79196.0,3.3e-07]
[1743976419073,0.399726,79196.0,79195.0,9.3e-07]
[1743976419716,0.41309395,79196.0,79195.0,9.3e-07]
[1743976420371,0.45819395,79196.0,79195.0,9.3e-07]
[1743976420844,0.46319395,79196.0,79195.0,9.3e-07]
[1743976421744,0.58609692,79196.0,79195.0,9.3e-07]
[1743976422434,0.7089946,79196.0,79195.0,9.3e-07]
[1743976422880,0.46319395,79196.0,79195.0,9.3e-07]
[1743976423990,0.45819395,79196.0,79195.0,9.3e-07]
[1743976424670,0.41109395,79196.0,79195.0,9.3e-07]
[1743976424900,0.36599395,79196.0,79195.0,9.3e-07]
[1743976425126,0.36699395,79196.0,79195.0,9.3e-07]
[1743976425587,0.37199395,79196.0,79195.0,9.3e-07]
[1743976425823,0.03199395,79196.0,79195.0,9.3e-07]
[1743976426075,0.03515119,79196.0,79195.0,9.3e-07]
[1743976426310,0.03199395,79196.0,79195.0,9.3e-07]
[1743976426546,0.03515085,79196.0,79195.0,9.3e-07]
[1743976426779,0.03015085,79196.0,79195.0,9.3e-07]
[1743976427008,0.03515085,79196.0,79195.0,9.3e-07]
[1743976427975,0.03099395,79196.0,79195.0,0.1229039]
[1743976428207,0.01936795,79196.0,79195.0,0.13744475]
[1743976429175,0.01436795,79196.0,79195.0,0.13744475]
[1743976429421,0.01836795,79196.0,79195.0,0.13744475]
[1743976429690,0.03099395,79196.0,79195.0,0.13744475]
[1743976429926,0.02599395,79196.0,79195.0,0.13744475]
[1743976430179,0.01436795,79196.0,79195.0,0.13744475]
[1743976431635,0.02599395,79196.0,79195.0,0.13744475]
[1743976431841,0.02699395,79196.0,79195.0,0.13844475]
[1743976432362,0.02599395,79196.0,79195.0,0.13844475]
[1743976432765,0.02699395,79196.0,79195.0,0.13844475]
[1743976433200,0.02599395,79196.0,79195.0,0.13844475]
[1743976433426,0.02699395,79196.0,79195.0,0.13844475]
[1743976434067,0.02699395,79196.0,79195.0,0.13744475]
[1743976434700,0.0291506,79196.0,79195.0,0.13744475]
[1743976435101,0.0311506,79196.0,79195.0,0.13744475]
[1743976435452,0.0311506,79196.0,79195.0,9.3e-07]
[1743976435655,0.12240516,79196.0,79195.0,9.3e-07]
[1743976435901,0.46440516,79196.0,79195.0,9.3e-07]
[1743976436109,0.46124851,79196.0,79195.0,9.3e-07]
[1743976436638,0.45924851,79196.0,79195.0,9.3e-07]
[1743976436827,0.36999395,79196.0,79195.0,9.3e-07]
[1743976436986,0.49289692,79196.0,79195.0,9.3e-07]
[1743976437586,0.53819692,79196.0,79195.0,9.3e-07]
[1743976438477,0.53919692,79196.0,79195.0,9.3e-07]
[1743976438690,0.53819692,79196.0,79195.0,9.3e-07]
[1743976438887,0.6610946,79196.0,79195.0,9.3e-07]
[1743976439091,0.6580946,79196.0,79195.0,9.3e-07]
[1743976439432,0.6630946,79196.0,79195.0,9.3e-07]
[1743976439814,0.6580946,79196.0,79195.0,9.3e-07]
[1743976440886,0.6630946,79196.0,79195.0,9.3e-07]
[1743976441384,0.41729395,79196.0,79195.0,9.3e-07]
[1743976441577,0.605184,79190.0,79189.0,5.3e-07]
[1743976441701,0.77568697,79190.0,79189.0,0.00013675]
[1743976441902,0.78876528,79190.0,79189.0,0.00013675]
[1743976442721,0.78976528,79190.0,79189.0,0.00013675]
[1743976442922,0.79476528,79190.0,79189.0,0.00013675]
[1743976443369,0.78976528,79190.0,79189.0,0.00013675]
[1743976443601,0.83626528,79190.0,79189.0,7.5e-07]
[1743976443794,0.84126528,79190.0,79189.0,7.5e-07]
[1743976445266,0.84026528,79190.0,79189.0,7.5e-07]
[1743976445466,0.84126528,79190.0,79189.0,7.5e-07]
[1743976447129,0.97383414,79190.0,79189.0,7.5e-07]
[1743976450749,0.85093646,79190.0,79189.0,7.5e-07]
[1743976459969,0.605201,79185.0,79184.0,1.5e-07]
[1743976460371,0.61825661,79185.0,79184.0,1.5e-07]
[1743976461003,0.012629,79180.0,79179.0,7.5e-07]
[1743976461238,0.77987927,79180.0,79179.0,7.5e-07]
[1743976461460,0.77672097,79180.0,79179.0,7.5e-07]
[1743976461742,0.78977658,79180.0,79179.0,7.5e-07]
[1743976461935,0.35263,79171.0,79170.0,9.5e-07]
[1743976462139,0.64377297,79171.0,79170.0,9.5e-07]
[1743976462573,0.605272,79164.0,79163.0,5.5e-07]
[1743976462743,0.77487497,79164.0,79163.0,5.5e-07]
[1743976463103,0.78793058,79164.0,79163.0,5.5e-07]
[1743976463231,0.012633,79152.0,79151.0,3.5e-07]
[1743976463425,0.012633,79152.0,79151.0,0.00013659]
[1743976463426,0.60847031,79152.0,79151.0,0.00013659]
[1743976463796,0.74126958,79152.0,79151.0,5.9e-07]
[1743976463993,0.87953618,79152.0,79151.0,5.9e-07]
[1743976464190,0.78926958,79152.0,79151.0,5.9e-07]
[1743976464792,0.79126958,79152.0,79151.0,5.9e-07]
[1743976464968,0.78926958,79152.0,79151.0,5.9e-07]
[1743976465378,0.79426958,79152.0,79151.0,5.9e-07]
[1743976465942,0.80126958,79152.0,79151.0,5.9e-07]
[1743976466151,0.91916726,79152.0,79151.0,5.9e-07]
[1743976467018,0.94916726,79152.0,79151.0,5.9e-07]
[1743976467223,0.94716726,79152.0,79151.0,5.9e-07]
[1743976467427,0.95216726,79152.0,79151.0,5.9e-07]
[1743976467819,0.94716726,79152.0,79151.0,5.9e-07]
[1743976467996,0.95216726,79152.0,79151.0,5.9e-07]
[1743976468622,0.94716726,79152.0,79151.0,5.9e-07]
[1743976468851,1.00136726,79152.0,79151.0,5.9e-07]
[1743976469028,0.605354,79139.0,79138.0,9.9e-07]
[1743976469204,0.73325697,79139.0,79138.0,9.9e-07]
[1743976469567,0.82121258,79139.0,79138.0,9.9e-07]
[1743976470044,0.87041258,79139.0,79138.0,9.9e-07]
[1743976470247,1.29039794,79139.0,79138.0,9.9e-07]
[1743976470449,1.41212034,79139.0,79138.0,9.9e-07]
[1743976470653,1.42212034,79139.0,79138.0,9.9e-07]
[1743976471053,1.31039794,79139.0,79138.0,9.9e-07]
[1743976471254,1.44859794,79139.0,79138.0,9.9e-07]
[1743976471456,0.91889794,79139.0,79138.0,9.9e-07]
[1743976471656,0.92389794,79139.0,79138.0,9.9e-07]
[1743976471870,0.92889794,79139.0,79138.0,9.9e-07]
[1743976472178,0.92389794,79139.0,79138.0,9.9e-07]
[1743976472335,0.91889794,79139.0,79138.0,9.9e-07]
[1743976472532,0.92389794,79139.0,79138.0,9.9e-07]
[1743976472784,0.92889794,79139.0,79138.0,9.9e-07]
[1743976473136,0.76069794,79139.0,79138.0,9.9e-07]
[1743976473765,0.75569794,79139.0,79138.0,9.9e-07]
[1743976473956,0.76069794,79139.0,79138.0,9.9e-07]
[1743976474366,0.75569794,79139.0,79138.0,9.9e-07]
[1743976474816,0.76069794,79139.0,79138.0,9.9e-07]
[1743976475504,0.75569794,79139.0,79138.0,9.9e-07]
[1743976475876,0.76069794,79139.0,79138.0,9.9e-07]
[1743976476078,0.88359562,79139.0,79138.0,9.9e-07]
[1743976476300,0.87859562,79139.0,79138.0,9.9e-07]
[1743976476509,0.88359562,79139.0,79138.0,9.9e-07]
[1743976476682,0.88859562,79139.0,79138.0,9.9e-07]
[1743976476889,0.91359562,79139.0,79138.0,9.9e-07]
[1743976477520,0.90859562,79139.0,79138.0,9.9e-07]
[1743976477691,0.91359562,79139.0,79138.0,9.9e-07]
[1743976478758,0.605409,79123.0,79122.0,0.0003348]
[1743976478957,0.352638,79122.0,79121.0,8e-07]
[1743976479130,0.47554097,79122.0,79121.0,0.00045522]
[1743976479532,0.48813874,79122.0,79121.0,0.00045522]
[1743976480471,0.48813874,79122.0,79121.0,2.2e-07]
[1743976481610,0.49313874,79122.0,79121.0,2.2e-07]
[1743976481818,0.50602127,79122.0,79121.0,2.2e-07]
[1743976482033,0.51102127,79122.0,79121.0,2.2e-07]
[1743976482410,0.50602127,79122.0,79121.0,2.2e-07]
[1743976482589,0.62891895,79122.0,79121.0,2.2e-07]
[1743976482803,0.605432,79116.0,79115.0,8.2e-07]
[1743976483006,0.72833497,79116.0,79115.0,2.5e-07]
[1743976483621,0.69970718,79116.0,79115.0,2.5e-07]
[1743976484033,0.71234618,79116.0,79115.0,2.5e-07]
[1743976484950,0.71734618,79116.0,79115.0,2.5e-07]
[1743976485852,0.72234618,79116.0,79115.0,2.5e-07]
[1743976486366,0.71734618,79116.0,79115.0,2.5e-07]
[1743976486705,0.72234618,79116.0,79115.0,2.5e-07]
[1743976486900,0.84024386,79116.0,79115.0,2.5e-07]
[1743976487309,0.95700068,79116.0,79115.0,2.5e-07]
[1743976487534,0.829103,79116.0,79115.0,2.5e-07]
[1743976488537,0.265463,79107.0,79106.0,6.5e-07]
[1743976488732,0.433543,79107.0,79106.0,6.5e-07]
[1743976489197,0.91404374,79107.0,79106.0,6.5e-07]
[1743976489398,1.14566754,79107.0,79106.0,6.5e-07]
[1743976489798,1.15066754,79107.0,79106.0,6.5e-07]
[1743976490089,1.19606754,79107.0,79106.0,6.5e-07]
[1743976490841,1.22106754,79107.0,79106.0,6.5e-07]
[1743976491317,1.22606754,79107.0,79106.0,6.5e-07]
[1743976491538,1.22106754,79107.0,79106.0,6.5e-07]
[1743976491727,0.357643,79091.0,79090.0,4e-07]
[1743976491859,0.605539,79084.0,79083.0,9e-07]
[1743976492059,0.605539,79084.0,79071.0,0.0001674]
[1743976492060,0.60558,79072.0,79071.0,3e-07]
[1743976492325,0.77362,79072.0,79071.0,3e-07]
[1743976492479,0.78608451,79072.0,79071.0,0.00013675]
[1743976493875,0.81935989,79072.0,79071.0,0.00013675]
[1743976494477,0.82935989,79072.0,79071.0,0.00013675]
[1743976494677,0.31160905,79072.0,79071.0,0.00013675]
[1743976494875,0.02246451,79072.0,79071.0,0.21723972]
[1743976495100,0.01746451,79072.0,79071.0,0.21723972]
[1743976495324,0.01246451,79072.0,79071.0,0.21723972]
[1743976495479,0.01746451,79072.0,79071.0,0.21723972]
[1743976495700,0.01746451,79072.0,79071.0,0.23178057]
[1743976496021,0.01246451,79072.0,79071.0,0.23178057]
[1743976496162,0.27039851,79072.0,79071.0,0.21723972]
[1743976496364,0.27058,79072.0,79071.0,0.09433675]
[1743976496575,0.28304451,79072.0,79071.0,0.09433675]
[1743976496771,0.28304451,79072.0,79071.0,0.0942]
[1743976496995,0.28304451,79072.0,79071.0,0.23164382]
[1743976497552,0.28204451,79072.0,79071.0,0.23164382]
[1743976497750,0.27804451,79072.0,79071.0,0.23164382]
[1743976497951,0.28004451,79072.0,79071.0,0.0942]
[1743976498079,0.28404451,79072.0,79071.0,0.0942]
[1743976498442,0.28604451,79072.0,79071.0,0.0942]
[1743976498734,0.27804451,79072.0,79071.0,0.0942]
[1743976499036,0.28104451,79072.0,79071.0,0.0942]
[1743976499785,0.29346608,79072.0,79071.0,0.0942]
[1743976500431,0.29046608,79072.0,79071.0,0.0942]
[1743976500630,0.29446608,79072.0,79071.0,0.0942]
[1743976500783,0.265614,79062.0,79061.0,0.002]
[1743976500964,0.265614,79062.0,79061.0,0.00204545]
[1743976501312,0.27789987,79062.0,79061.0,0.00204545]
[1743976501505,0.61789987,79062.0,79061.0,0.00204545]
[1743976502065,0.74079755,79062.0,79061.0,0.00204545]
[1743976502262,0.61789987,79062.0,79061.0,0.00304545]
[1743976503834,0.61789987,79062.0,79061.0,0.00204545]
[1743976504132,0.27789987,79062.0,79061.0,0.04864545]
[1743976504841,0.28289987,79062.0,79061.0,0.04864545]
[1743976505131,0.27789987,79062.0,79061.0,0.04864545]
[1743976505346,0.28789987,79062.0,79061.0,0.04864545]
[1743976506324,0.28789987,79062.0,79061.0,0.0456]
[1743976507005,0.265623,79059.0,79058.0,0.0001674]
[1743976507347,0.265623,79059.0,79058.0,0.00021277]
[1743976507549,0.27790887,79059.0,79058.0,0.00021277]
[1743976508103,0.28090887,79059.0,79058.0,0.00021277]
[1743976508505,0.27890887,79059.0,79058.0,0.00021277]
[1743976508962,0.28190887,79059.0,79058.0,0.00021277]
[1743976509320,0.27790887,79059.0,79058.0,0.00021277]
[1743976509526,0.27890887,79059.0,79058.0,0.00021277]
[1743976510043,0.28860675,79059.0,79058.0,0.00021277]
[1743976510369,0.62860675,79059.0,79058.0,0.00021277]
[1743976511066,0.63060675,79059.0,79058.0,0.00021277]
[1743976511268,0.62760675,79059.0,79058.0,0.00021277]
[1743976511637,0.62760675,79059.0,79043.0,0.0497]
[1743976511638,0.265674,79044.0,79043.0,0.0497]
[1743976511881,0.265674,79044.0,79043.0,0.00045365]
[1743976512180,0.29074228,79044.0,79043.0,0.00045365]
[1743976514209,0.29174228,79044.0,79043.0,0.00045365]
[1743976517361,0.29074228,79044.0,79043.0,0.00045365]
[1743976517665,0.0131649,79044.0,79043.0,0.12335662]
[1743976518041,0.001,79044.0,79043.0,0.12335662]
[1743976518252,0.0131649,79044.0,79043.0,0.12335662]
[1743976518661,0.0131649,79044.0,79043.0,0.00045365]
[1743976518662,0.266674,79044.0,79043.0,0.00045365]
[1743976518863,0.2788389,79044.0,79043.0,0.00045365]
[1743976519533,0.265681,79042.0,79041.0,0.0001674]
[1743976520055,0.2778459,79042.0,79041.0,0.0001674]
[1743976521834,0.01013742,79042.0,79041.0,0.0001674]
[1743976522078,0.27581842,79042.0,79041.0,0.0001674]
[1743976524666,0.01013742,79042.0,79041.0,0.0001674]
[1743976525019,0.01013742,79042.0,79041.0,0.2532004]
[1743976525220,0.01013742,79042.0,79041.0,0.40329522]
[1743976525441,0.00045268,79044.0,79042.0,0.01454085]
[1743976525611,0.00045268,79044.0,79043.0,0.13744382]
[1743976525813,0.01310368,79044.0,79043.0,0.13744382]
[1743976526851,0.00045268,79044.0,79043.0,0.13744382]
[1743976527584,0.00045268,79044.0,79043.0,0.39046982]
[1743976528115,0.00045268,79044.0,79043.0,0.13744382]
[1743976528442,0.00145268,79044.0,79043.0,0.13744382]
[1743976529490,0.01150443,79044.0,79043.0,0.13744382]
[1743976529789,0.02415543,79044.0,79043.0,0.13744382]
[1743976529961,0.02315543,79044.0,79043.0,0.13744382]
[1743976530643,0.01050443,79044.0,79043.0,0.13744382]
[1743976531348,0.01150443,79044.0,79043.0,0.13744382]
[1743976531643,0.01150443,79044.0,79043.0,0.18805382]
[1743976531882,0.01050443,79044.0,79043.0,0.18805382]
[1743976532086,0.01150443,79044.0,79043.0,0.18805382]
[1743976534514,0.00145268,79044.0,79043.0,0.24010743]
[1743976535212,0.0115296,79044.0,79043.0,0.24010743]
[1743976535412,0.00145268,79044.0,79043.0,0.24010743]
[1743976535831,0.00145268,79044.0,79043.0,0.22745643]
[1743976536569,0.0115296,79044.0,79043.0,0.22745643]
[1743976536777,0.00145268,79044.0,79043.0,0.48048243]
[1743976536991,0.0115296,79044.0,79043.0,0.48048243]
[1743976537288,0.00145268,79044.0,79043.0,0.48048243]
[1743976537616,0.00145268,79044.0,79043.0,0.49313343]
[1743976537787,0.0115296,79044.0,79043.0,0.49313343]
[1743976538041,0.00045268,79044.0,79043.0,0.49313343]
[1743976538238,0.00145268,79044.0,79043.0,0.49313343]
[1743976538819,0.00045268,79044.0,79043.0,0.49313343]
[1743976539023,0.00145268,79044.0,79043.0,0.49313343]
[1743976540288,0.00045268,79044.0,79043.0,0.49313343]
[1743976540647,0.00145268,79044.0,79043.0,0.49313343]
[1743976548296,0.0115296,79044.0,79043.0,0.49313343]
[1743976548501,0.00145268,79044.0,79043.0,0.22745643]
[1743976548797,0.0115296,79044.0,79043.0,0.24010743]
[1743976549004,0.0115296,79044.0,79043.0,0.20070482]
[1743976549342,0.0115296,79044.0,79043.0,0.24019211]
[1743976550161,0.00145268,79044.0,79043.0,0.24019211]
[1743976550367,0.00045268,79044.0,79043.0,0.24019211]
[1743976550602,0.00145268,79044.0,79043.0,0.24019211]
[1743976550997,0.01055172,79044.0,79043.0,0.24019211]
[1743976551430,0.01155172,79044.0,79043.0,0.24019211]
[1743976551631,0.01155172,79044.0,79043.0,0.22754111]
[1743976554098,0.02420272,79044.0,79043.0,0.22754111]
[1743976554298,0.02420272,79044.0,79043.0,0.18805382]
[1743976554641,0.02320272,79044.0,79043.0,0.18805382]
[1743976554942,0.02420272,79044.0,79043.0,0.18805382]
[1743976556150,0.02420272,79044.0,79043.0,0.22754736]
[1743976556359,0.02320272,79044.0,79043.0,0.22754736]
[1743976556756,0.26457472,79044.0,79043.0,0.17351297]
[1743976556973,0.27722572,79044.0,79043.0,0.05061]
[1743976557176,0.27622572,79044.0,79043.0,0.05061]
[1743976557383,0.27922572,79044.0,79043.0,0.05061]
[1743976557880,0.28022572,79044.0,79043.0,0.05061]
[1743976558226,0.27722572,79044.0,79043.0,0.05061]
[1743976558428,0.27622572,79044.0,79043.0,0.05061]
[1743976558655,0.27722572,79044.0,79043.0,0.05061]
[1743976559390,0.01155172,79044.0,79043.0,0.05061]
[1743976559595,0.01155172,79044.0,79043.0,0.18805382]
[1743976559996,0.01155172,79044.0,79043.0,0.44107982]
[1743976560401,0.01455172,79044.0,79043.0,0.4805911]
[1743976560897,0.01155172,79044.0,79043.0,0.2275651]
[1743976561100,0.01355172,79044.0,79043.0,0.18805382]
[1743976561244,0.01355172,79044.0,79043.0,0.22752909]
[1743976561443,0.01455172,79044.0,79043.0,0.22752909]
[1743976561705,0.01355172,79044.0,79043.0,0.22752909]
[1743976561924,0.26657472,79044.0,79043.0,0.18805382]
[1743976562119,0.28022572,79044.0,79043.0,0.18805382]
[1743976562782,0.27922572,79044.0,79043.0,0.18805382]
[1743976562983,0.012651,79045.0,79044.0,0.73531513]
[1743976563202,0.012651,79045.0,79044.0,0.85835437]
[1743976563900,0.253018,79046.0,79044.0,0.85835437]
[1743976564126,0.265668,79046.0,79045.0,0.12290297]
[1743976565318,0.01665,79046.0,79045.0,0.13744382]
[1743976566065,0.265671,79045.0,79044.0,0.72091055]
[1743976566544,0.265671,79045.0,79044.0,0.84381352]
[1743976567442,0.265671,79045.0,79044.0,0.72091055]
[1743976567616,0.268671,79045.0,79044.0,0.72091055]
[1743976567817,0.361871,79045.0,79044.0,0.72091055]
[1743976568427,0.358871,79045.0,79044.0,0.72091055]
[1743976568626,0.359871,79045.0,79044.0,0.72091055]
[1743976568828,0.358871,79045.0,79044.0,0.72091055]
[1743976569253,0.359871,79045.0,79044.0,0.72091055]
[1743976569472,0.266671,79045.0,79044.0,0.72091055]
[1743976570376,0.269671,79045.0,79044.0,0.72091055]
[1743976570566,0.27804992,79045.0,79044.0,0.84381352]
[1743976571066,0.27504992,79045.0,79044.0,0.84381352]
[1743976571266,0.27504992,79045.0,79044.0,0.85835437]
[1743976571483,0.27804992,79045.0,79044.0,0.85835437]
[1743976571698,0.27804992,79045.0,79044.0,0.84381352]
[1743976572266,0.27804992,79045.0,79044.0,0.72091055]
[1743976572644,0.27504992,79045.0,79044.0,0.72091055]
[1743976572942,0.36874992,79045.0,79044.0,0.72091055]
[1743976573150,0.37174992,79045.0,79044.0,0.72091055]